Cogmind - Beta 15 @@@ ROGUE MODE // 2025.05.31 @ 14:24:11 // Winter2022/Polymind Player: Figgis Result: Destroyed by G-34 Mercenary with Small Laser Performance ------------- Evolutions (1) 500 Regions Visited (3) 600 Robots Destroyed (12) 60 Value Destroyed (451) 451 Prototype IDs (2) 40 Alien Tech Used (0) 0 Bonus (730) 730 TOTAL SCORE: 1971 Bonus ------- Polymind Skill 730 Cogmind --------- Core Integrity 0/400 Matter 0/0 Energy 50/50 System Corruption 0% Temperature Warm (163) Movement Walking (120) Location -9/Materials Parts ------- > --- POWER (1) -------- (None) > --- PROPULSION (2) --- Aluminum Leg Aluminum Leg > --- UTILITY (1) ------ Heat Sink > --- WEAPON (1) ------- Small Laser > --- INVENTORY (1) ---- (None) Peak State ------------ > --- POWER ------------ Light Nuclear Core > --- PROPULSION ------- Aluminum Leg Aluminum Leg > --- UTILITY ---------- Improved Heat Sink > --- WEAPON ----------- Particle Gun > --- INVENTORY -------- (None) [Rating: 10] Favorites ----------- Power Light Nuclear Core Engine Ion Engine Power Core Light Nuclear Core Propulsion Aluminum Leg Leg Aluminum Leg Utility Improved Heat Sink Device Improved Heat Sink Weapon Particle Gun Energy Gun Particle Gun Build | -11 -10 -10 -9 ------- Run | Yrd Mat Min Mat Slots Evolved . | . . . . Power . | . . . . Propulsion . | . . . . Utility . | . . . . Weapon . | . . . . Parts Attached . | . . . . Power . | . . . . Engine . | . . . . Core . | . . . . Reactor . | . . . . Propulsion . | . . . . Treads . | . . . . Leg . | . . . . Wheel . | . . . . Hover . | . . . . Flight . | . . . . Utility . | . . . . Device . | . . . . Storage . | . . . . Processor . | . . . . Hackware . | . . . . Protection . | . . . . Artifact . | . . . . Weapon . | . . . . Energy Gun . | . . . . Energy Cannon . | . . . . Ballistic Gun . | . . . . Ballistic Cannon . | . . . . Launcher . | . . . . Special Weapon . | . . . . Impact Weapon . | . . . . Slashing Weapon . | . . . . Piercing Weapon . | . . . . Special Melee Weapon . | . . . . Unidentified Prototypes . | . . . . Parts Lost 5 | . . . 5 Power 1 | . . . 1 Propulsion 2 | . . . 2 Utility 1 | . . . 1 Weapon 1 | . . . 1 Highest Loss Streak 2 | . . . 2 To Critical Strikes . | . . . . Average Backups . | . . . . Power . | . . . . Propulsion . | . . . . Utility . | . . . . Weapon . | . . . . Tool/Special . | . . . . Unused Backups . | . . . . Power . | . . . . Propulsion . | . . . . Utility . | . . . . Weapon . | . . . . Tool/Special . | . . . . Average Slot Usage (%) 89 | . 20 100 95 Engine 2 | . . . 3 Core 15 | . 4 20 15 Leg 35 | . 8 40 37 Device 18 | . 4 20 19 Energy Gun 18 | . 4 20 19 Peak Build Rating 10 | . 10 10 10 Average Rating 8 | . 2 10 8 On Entrance 5 | . . 10 10 Naked Turns 41 | . 32 . 9 Heaviest Build 9 | . 9 9 9 Greatest Support 20 | 3 20 20 20 Greatest Overweight (x) . | . . . . Average Overweight (x) . | . . . . Largest Inventory Capacity 1 | . 1 1 1 Average Capacity . | . . 1 . Most Carried . | . . . . Average Carried . | . . . . Final Capacity 1 | . 1 1 1 Final Carried . | . . . . Class Distribution -------------------- 93% | Grunt 6% | Cogmind Dominant Class ---------------- Cogmind | -10/Materials Grunt | -10/Mines Grunt | -9/Materials Resources | -11 -10 -10 -9 ----------- Run | Yrd Mat Min Mat Matter Collected . | . . . . Remotely . | . . . . Salvage Created 428 | . . . 428 Parts 22 | . 2 . 20 Haulers Intercepted . | . . . . Recyclers Shooed . | . . . . Parts Field Recycled . | . . . . Retrieved Matter . | . . . . Parts Self-Destructed . | . . . . Prevented . | . . . . Kills | -11 -10 -10 -9 ------- Run | Yrd Mat Min Mat Combat Hostiles Destroyed 11 | . 1 . 10 Guns 10 | . 1 . 9 Classes Destroyed 3 | . 1 . 2 Watcher 1 | . . . 1 Grunt 9 | . 1 . 8 Sentry 2 | . . . 2 Best Kill Streak 4 | . 1 . 4 Combat Bots Only 3 | . 1 . 3 Max Kills in Single Turn 1 | . 1 . 1 Gunslinging . | . . . . Exploded . | . . . . Melee . | . . . . Uniques/NPCs Destroyed . | . . . . Combat | -11 -10 -10 -9 -------- Run | Yrd Mat Min Mat Hostile Shots Fired 119 | . 4 . 115 Missed 23 | . . . 23 Hits 96 | . 4 . 92 Projectile 96 | . 4 . 92 Critical Strikes 2 | . . . 2 Damage Taken 1217 | . 47 . 1170 Core 450 | . 47 . 403 Absorbed by Shields . | . . . . Core Remaining (%) 90 | 100 . 81 . Volleys Fired 80 | . 2 . 78 Largest 1 | . 1 . 1 Hottest 65 | . 65 . 65 Shots Fired 80 | . 2 . 78 Gun 80 | . 2 . 78 Cannon . | . . . . Launcher . | . . . . Special . | . . . . Kinetic . | . . . . Thermal 80 | . 2 . 78 Explosive . | . . . . Electromagnetic . | . . . . Robot Hit Streak 14 | . 2 . 14 Robot Miss Streak 3 | . . . 3 Penetration Max . | . . . . Secondary Targets . | . . . . Shots Hit Robots 65 | . 2 . 63 Core Hits 24 | . 2 . 22 Critical Kills . | . . . . Critical Parts Destroyed . | . . . . Critical Strikes . | . . . . Melee Attacks . | . . . . Impact . | . . . . Slashing . | . . . . Piercing . | . . . . Sneak Attacks . | . . . . Combat Hostiles . | . . . . Follow-up Attacks . | . . . . Damage Inflicted 908 | . 31 . 877 Guns 908 | . 31 . 877 Cannons . | . . . . Explosions . | . . . . Melee . | . . . . Ramming . | . . . . Kinetic . | . . . . Thermal 908 | . 31 . 877 Explosive . | . . . . Electromagnetic . | . . . . Impact . | . . . . Slashing . | . . . . Piercing . | . . . . Highest Corruption . | . . . . Average Corruption . | . . . . Corruption Purged . | . . . . Corruption Blocked . | . . . . Overload Shots . | . . . . Overflow Damage . | . . . . Projectiles . | . . . . Explosions . | . . . . Melee . | . . . . Knockbacks . | . . . . Impact . | . . . . Kinetic . | . . . . Secondary . | . . . . Self-Inflicted Damage . | . . . . Shots . | . . . . Rammed . | . . . . Targets Rammed . | . . . . Kicked . | . . . . Crushed . | . . . . Highest Temperature 215 | . 13 . 215 Average Temperature 61 | . 11 . 63 Received Heat Transfer 669 | . 27 . 642 Siege Activations . | . . . . Martial Activations . | . . . . Shielding Activations . | . . . . Robots Disrupted . | . . . . Combat Hostiles . | . . . . Robots Corrupted . | . . . . Combat Hostiles . | . . . . Parts Fried . | . . . . Impact Corruptions . | . . . . Robots Melted 1 | . . . 1 Combat Hostiles 1 | . . . 1 Parts Melted 2 | . . . 2 Heat Transferred 2023 | . 74 . 1949 Parts Sabotaged . | . . . . Parts Stolen . | . . . . Parts Stripped . | . . . . Power Chain Reactions . | . . . . Alert | -11 -10 -10 -9 ------- Run | Yrd Mat Min Mat Maximum Alert Level . | . . . . Low Security (%) 100 | 100 100 100 100 Level 1 . | . . . . Level 2 . | . . . . Level 3 . | . . . . Level 4 . | . . . . Level 5 . | . . . . High Security . | . . . . Max Security . | . . . . Peak Influence 68 | . 20 3 68 Initial 3 | . . 3 . Average 15 | . 2 1 18 Influence Increases 292 | . 20 . 272 Destroy 0b10 Robot/C 220 | . 20 . 200 Destroy 0b10 Robot/NC 5 | . . . 5 Destroy Leader 42 | . . . 42 Successful Hack 10 | . . . 10 Lose Combat Pursuer 15 | . . . 15 Influence Decreases 224 | . 10 10 204 Entered New Map 7 | . . 7 . Time Decay 167 | . 10 3 154 Lost Part 50 | . . . 50 Squads Dispatched . | . . . . Investigation . | . . . . Extermination . | . . . . Reinforcement . | . . . . Assault . | . . . . Garrison . | . . . . Intercept . | . . . . Searches Triggered . | . . . . Construction Impeded . | . . . . Haulers Reinforced . | . . . . Active Scanning Responses . | . . . . Cargo Convoy Interrupts . | . . . . Stealth | -11 -10 -10 -9 --------- Run | Yrd Mat Min Mat Distress Signals 1 | . . . 1 Communications Jammed . | . . . . Distress Signals . | . . . . Times Spotted 27 | . 3 . 24 Peak Tracking Total 7 | . 2 . 7 Tactical Retreats 1 | . . . 1 Traps | -11 -10 -10 -9 ------- Run | Yrd Mat Min Mat Traps Triggered . | . . . . Indirectly . | . . . . Trap Hack Attempts . | . . . . Triggered . | . . . . Disarmed . | . . . . Reprogrammed . | . . . . Reused . | . . . . Traps Extracted . | . . . . Installed . | . . . . Triggered . | . . . . Machines | -11 -10 -10 -9 ---------- Run | Yrd Mat Min Mat Machines Disabled . | . . . . Max in Single Turn . | . . . . Machines Repaired . | . . . . Machines Dismantled . | . . . . Machines Sabotaged . | . . . . Overloaded Fab Kills . | . . . . Hacking | -11 -10 -10 -9 --------- Run | Yrd Mat Min Mat Machines Accessed 6 | . . . 6 Terminals 5 | . . . 5 Fabricators . | . . . . Repair Stations 1 | . . . 1 Recycling Units . | . . . . Scanalyzers . | . . . . Garrison Access . | . . . . Total Hacks 16 | . . . 16 Successful 4 | . . . 4 Failed 11 | . . . 11 Catastrophic 2 | . . . 2 Database Lockouts 1 | . . . 1 Manual 4 | . . . 4 Terminals 13 | . . . 13 Fabricators . | . . . . Repair Stations 3 | . . . 3 Recycling Units . | . . . . Scanalyzers . | . . . . Garrison Access . | . . . . Terminal Hacks 4 | . . . 4 Robot Analysis 1 | . . . 1 Prototype ID Bank 1 | . . . 1 Locate Traps 1 | . . . 1 Transport Status 1 | . . . 1 Fabricator Hacks . | . . . . Repair Station Hacks . | . . . . Recycling Unit Hacks . | . . . . Scanalyzer . | . . . . Garrison Access Hacks . | . . . . Unauthorized Hacks . | . . . . Terminals . | . . . . Fabricators . | . . . . Repair Stations . | . . . . Recycling Units . | . . . . Scanalyzers . | . . . . Garrison Access . | . . . . Data Cores Recovered . | . . . . Used . | . . . . Hacking Detections 6 | . . . 6 Full Trace Events . | . . . . Feedback Events . | . . . . Feedback Blocked . | . . . . Robot Schematics Acquired . | . . . . Robots Built . | . . . . Authchips . | . . . . Time . | . . . . Total Robot Build Rating . | . . . . Part Schematics Acquired . | . . . . Parts Built . | . . . . Authchips . | . . . . Time . | . . . . Total Part Build Rating . | . . . . Parts Repaired . | . . . . Time . | . . . . Parts Recycled . | . . . . Recycled Matter . | . . . . Retrieved Matter . | . . . . Retrieved Components . | . . . . Parts Scanalyzed . | . . . . Part Schematics Acquired . | . . . . Parts Damaged . | . . . . Bothacking | -11 -10 -10 -9 ------------ Run | Yrd Mat Min Mat Used RIF Installer . | . . . . Robots Hacked 3 | . 1 . 2 Non-combat . | . . . . Combat 3 | . 1 . 2 Robot Hacks Applied 3 | . 1 . 2 find_shortcuts 3 | . 1 . 2 Relay Couplers Released . | . . . . Fabnet Peak Effective % . | . . . . Robots Rewired . | . . . . Allies Hacked . | . . . . Hacks Repelled . | . . . . Allies | -11 -10 -10 -9 -------- Run | Yrd Mat Min Mat Total Allies . | . . . . Largest Group . | . . . . Highest-Rated Group . | . . . . Highest-Rated Ally . | . . . . Total Orders . | . . . . Ally Attacks . | . . . . Total Damage . | . . . . Kills . | . . . . Allies Corrupted . | . . . . Allies Melted . | . . . . Intel | -11 -10 -10 -9 ------- Run | Yrd Mat Min Mat Active Infowar (turns) . | . . . . Robot Analysis Total 2 | . 1 . 1 Derelict Logs Recovered . | . . . . Drone Launches . | . . . . Drone Recoveries . | . . . . Exploration | -11 -10 -10 -9 ------------- Run | Yrd Mat Min Mat Turns Passed 650 | 9 40 53 548 Spaces Moved 383 | 18 41 45 279 Core 59 | 18 37 . 4 Treads . | . . . . Legs 324 | . 4 45 275 Wheels . | . . . . Hover . | . . . . Flight . | . . . . Fastest Speed 50 | 50 50 120 50 Average Speed 109 | 50 56 120 118 Slowest Speed 120 | 50 120 120 120 Overloaded Moves . | . . . . Propulsion Burnouts . | . . . . Robots Hopped . | . . . . Potential Cave-ins . | . . . . Cave-ins Triggered . | . . . . Exploration Rate (%) 17 | 4 9 14 41 Regions Visited 3 Branch Regions 1 Pre-discovered Areas . | . . . . Known Exits Taken . | . . . . Unknown Exits Taken 3 | 1 1 1 . Scrap Searched . | . . . . Spaces Dug . | . . . . Terrain Destroyed . | . . . . Melee . | . . . . Projectile . | . . . . AOE . | . . . . Terrain Rammed . | . . . . Walls Destroyed . | . . . . Machines Disabled . | . . . . Actions | -11 -10 -10 -9 --------- Run | Yrd Mat Min Mat Total 533 | 17 55 44 417 Wait 73 | . 13 . 60 Move 380 | 17 40 44 279 Hop . | . . . . Pick Up . | . . . . Fast Attach . | . . . . Attach . | . . . . Detach . | . . . . Swap . | . . . . Drop . | . . . . Fire 80 | . 2 . 78 Melee . | . . . . Ram . | . . . . Kick . | . . . . Crush . | . . . . Escape Stasis . | . . . . Rewire . | . . . . Trap . | . . . . Miscellaneous . | . . . . Route ------- -11/Scrapyard -10/Materials -10/Mines -9/Materials (discovered 1 exit: [*Mat]) History --------- Turn | Location | Event 3 | -11/Scrapyard | Discovered new exit (range 15) 10 | -11/Scrapyard | Entered Materials 24 | -10/Materials | Discovered new exit (range 6) 50 | -10/Materials | Entered Mines 76 | -10/Mines | Discovered new exit (range 13) 103 | -10/Mines | Entered Materials 187 | -9/Materials | Central database locked down 209 | -9/Materials | Discovered new exit (range 16) 609 | -9/Materials | Core integrity fell below 50% 634 | -9/Materials | Core integrity fell below 20% 651 | -9/Materials | Destroyed by G-34 Mercenary with Small Laser Last Messages --------------- 00604_ Heat Sink destroyed. 00610_ Aluminum Leg destroyed. 00611_ Released control of G-34 Mercenary. 00611_ Took control of G-34 Mercenary. 00612_ G-34 Mercenary heat spikes uncontrollably. 00612_ G-34 Mercenary reactivates. 00613_ G-34 Mercenary overheating. 00614_ K-01 Serf collects debris. 00614_ G-34 Mercenary overheating. 00616_ G-34 Mercenary heat damages Sml. Laser, Heat Sink. 00616_ G-34 Mercenary overheating. 00619_ G-34 Mercenary heat damages core (-4). 00624_ G-34 Mercenary heat short circuits Ion Engine. 00628_ K-01 Serf collects debris. 00628_ Destroyed Sml. Laser. 00631_ Destroyed Broken Ion Engine. 00639_ Critical hit (Burn: +37). 00645_ Destroyed Lgt. Nuclear Core. 00647_ Ion Engine destroyed. 00649_ G-47 Trooper destroyed. Map ----- +----------------------------------------------------+ | | | | | | | | | | | | | | | | | | | | | | | | | | | | | | | | | ??????????????????????????################???????? | | ??????????????????????????# #???????? | | ??????????????????????????# #???????? | | ???????????????##########?# [ #####???? | | ???????????????# ### + #??## | | ???????????????# """ + # ### #? !! | | ???????????????# "R #g# *% ! ### ## !! | | ???????????????# """ # ########+####+### == | | ???????????????# # == | | ???????????????# """ #g ###### !! | | ???????????????# """ [+% #????## ## !! | | ???????????????# """ %# #?????# ##### | | ???????????????# =*[ # #?????#* | | ???????????????####+#####k% ######+##### | | ???????????????# % ## ] % # | | ???????????????# ## "T" # | | ???????????????# ^ ^ ##= """ # | | ?????????????? ^ ## # | | ?????????????### ############ | | ???????????????# """ """ #??????????? | | ???????????????# """ """ #??????????? | | ???????????????# """ """ #??????????? | | ???????????????# """ """ #??????????? | | ???????????????# ? ???????????? | | ???????????????# % %= ?? ?????????????? | | ???????????????# " ????????????????????? | | ???????????????## ??????????????????????? | | ????????????????# " ^??????????????????????? | | ???????????????? T ????????????????????????? | | ????????????????? ? ??????????????????????????? | | ?????????????????????????????????????????????????? | | ?????????????????????????????????????????????????? | | ?????????????????????????????????????????????????? | | ?????????????????????????????????????????????????? | +----------------------------------------------------+ Best States ------------- Heat Dissipation 43 Energy Generation 19 Energy Capacity 200 Sight Range 16 Terrain Scan Density 10 Evasion (%) 55 Item Schematics ----------------- None Robot Schematics ------------------ None Fabricated ------------ Nothing Repaired ---------- Nothing Alien Tech Used ----------------- None Achievements -------------- None Challenges ------------ None Polymind | -11 -10 -10 -9 ---------- Run | Yrd Mat Min Mat Hosts 3 | . 1 . 2 Combat Hostiles 3 | . 1 . 2 Allies . | . . . . Unique Host Classes 1 | . 1 . . Average Host Suspicion 81 | . 100 11 87 Unsuspicious Activity . | . . . . Returns to Shadow . | . . . . Fuzzy Dispatches . | . . . . Protomatter Created 60 | . 8 . 52 Used 60 | . 30 . 30 Decayed 12 | . . . 12 Highest Spend 30 | . 30 . 15 Top 5 Hosts by Kills: G-47 Trooper (-10/Materials: 7) G-34 Mercenary (-9/Materials: 2) G-34 Mercenary (-9/Materials: 2) Game ------ Seed ArcCountertargetingMonowheel Manual? 0 Play Time 00:05:47 Cumulative 166.8 hours Start 2025.05.31 @ 14:18:44 End 2025.05.31 @ 14:24:11 Sessions 1 Manual Loads 0 Difficulty Rogue Special Mode Winter2022/Polymind Game No. 251 Rogue 248 Adventurer 3 Explorer 0 Win Type - Total 1 Types 1/0/0/0/0/0/0/0/0/0 Lore% 55 Gallery% 57 Achievement% 45 Wizard Run 0 Options --------- Layout 0 ASCII 0 Keyboard 0 Movement Mouse Keybinds 0 Fullscreen 2 Font 18/SmallcapsGlow Map View 76x50 Zoom Use 0% Tactical HUD 1 Map Filters NONE Filters NONE Steam 1 RUN: ffe13e26-8dd7-4ce7-a5c4-ff56298112a8